Workbook

Sheet Заказ МБП
A1: Наименование | B1: Кол-во | C1: Объем | D1: Цена за ед | E1: Сумма | F1: Поставщик
A2: Активированный уголь BLC LO12x40 фракц, 1-3 мм | B2: 1 | C2: =VLOOKUP(A2,search!A1:D500,3,0) -> 50 | D2: =VLOOKUP(A2,search!A1:D500,2,0) -> 117 | E2: =B2*C2*D2 -> 5850 | F2: =VLOOKUP(A2,search!A1:D500,4,0) -> 0 | H2: Очистить заявку
A3: Дистил | B3: 4 | C3: =VLOOKUP(A3,search!A2:D501,3,0) -> 4 | D3: =VLOOKUP(A3,search!A2:D501,2,0) -> 1616.54 | E3: =B3*C3*D3 -> 25864.64 | F3: =VLOOKUP(A3,search!A2:D501,4,0) -> ЦКТ,текскепро
A4: Neutrol A | B4: 1 | C4: =VLOOKUP(A4,search!A3:D502,3,0) -> 25 | D4: =VLOOKUP(A4,search!A3:D502,2,0) -> 209.26 | E4: 5231.5 | F4: =VLOOKUP(A4,search!A3:D502,4,0) -> универсум
A5: Novoclin Fresh AN усилитель | B5: 2 | C5: =VLOOKUP(A5,search!A4:D503,3,0) -> 25 | D5: =VLOOKUP(A5,search!A4:D503,2,0) -> 479.62 | E5: 23981 | F5: =VLOOKUP(A5,search!A4:D503,4,0) -> универсум
A6: Декап | B6: 2 | C6: =VLOOKUP(A6,search!A5:D504,3,0) -> 0 | D6: =VLOOKUP(A6,search!A5:D504,2,0) -> 784.06 | E6: 0 | F6: =VLOOKUP(A6,search!A5:D504,4,0) -> текскепро
A7: Колор Дайм бордовый Краситель для замши | B7: 2 | C7: =VLOOKUP(A7,search!A6:D505,3,0) -> 1 | D7: =VLOOKUP(A7,search!A6:D505,2,0) -> 1186.34 | E7: 2372.68 | F7: =VLOOKUP(A7,search!A6:D505,4,0) -> текскепро
A8: Колор Дайм серый Краситель для замши | B8: 2 | C8: =VLOOKUP(A8,search!A7:D506,3,0) -> 1 | D8: =VLOOKUP(A8,search!A7:D506,2,0) -> 1248.785 | E8: 2497.57 | F8: =VLOOKUP(A8,search!A7:D506,4,0) -> Диана-трест,текскепро
A9: Колор Хромо Софт жёлтый лимон | B9: 2 | C9: =VLOOKUP(A9,search!A8:D507,3,0) -> 1 | D9: =VLOOKUP(A9,search!A8:D507,2,0) -> 500 | E9: 1000 | F9: =VLOOKUP(A9,search!A8:D507,4,0) -> Диана-трест | I9: =NOW() -> 2014-09-30T14:25:04.010
A10: Колор Хромо Софт красная вишня Краситель для гладкой кожи | B10: 2 | C10: =VLOOKUP(A10,search!A9:D508,3,0) -> 1 | D10: =VLOOKUP(A10,search!A9:D508,2,0) -> 1497.83 | E10: 2995.66 | F10: =VLOOKUP(A10,search!A9:D508,4,0) -> Диана-трест,текскепро
A11: LIVAL GLF | B11: 1 | C11: =VLOOKUP(A11,search!A10:D509,3,0) -> 5 | D11: =VLOOKUP(A11,search!A10:D509,2,0) -> 1218.05 | E11: 6090.25 | F11: =VLOOKUP(A11,search!A10:D509,4,0) -> Диана-трест
C12: =VLOOKUP(A12,search!A11:D510,3,0) ->  | D12: =VLOOKUP(A12,search!A11:D510,2,0) ->  | F12: =VLOOKUP(A12,search!A11:D510,4,0) -> 
C13: =VLOOKUP(A13,search!A12:D511,3,0) ->  | D13: =VLOOKUP(A13,search!A12:D511,2,0) ->  | F13: =VLOOKUP(A13,search!A12:D511,4,0) -> 
C14: =VLOOKUP(A14,search!A13:D512,3,0) ->  | D14: =VLOOKUP(A14,search!A13:D512,2,0) ->  | F14: =VLOOKUP(A14,search!A13:D512,4,0) -> 
C15: =VLOOKUP(A15,search!A14:D513,3,0) ->  | D15: =VLOOKUP(A15,search!A14:D513,2,0) ->  | F15: =VLOOKUP(A15,search!A14:D513,4,0) -> 
C16: =VLOOKUP(A16,search!A15:D514,3,0) ->  | D16: =VLOOKUP(A16,search!A15:D514,2,0) ->  | F16: =VLOOKUP(A16,search!A15:D514,4,0) -> 
C17: =VLOOKUP(A17,search!A16:D515,3,0) ->  | D17: =VLOOKUP(A17,search!A16:D515,2,0) ->  | F17: =VLOOKUP(A17,search!A16:D515,4,0) -> 
C18: =VLOOKUP(A18,search!A17:D516,3,0) ->  | D18: =VLOOKUP(A18,search!A17:D516,2,0) ->  | F18: =VLOOKUP(A18,search!A17:D516,4,0) -> 
C19: =VLOOKUP(A19,search!A18:D517,3,0) ->  | D19: =VLOOKUP(A19,search!A18:D517,2,0) ->  | F19: =VLOOKUP(A19,search!A18:D517,4,0) -> 
C20: =VLOOKUP(A20,search!A19:D518,3,0) ->  | D20: =VLOOKUP(A20,search!A19:D518,2,0) ->  | F20: =VLOOKUP(A20,search!A19:D518,4,0) -> 
C21: =VLOOKUP(A21,search!A20:D519,3,0) ->  | D21: =VLOOKUP(A21,search!A20:D519,2,0) ->  | F21: =VLOOKUP(A21,search!A20:D519,4,0) -> 
C22: =VLOOKUP(A22,search!A21:D520,3,0) ->  | D22: =VLOOKUP(A22,search!A21:D520,2,0) ->  | F22: =VLOOKUP(A22,search!A21:D520,4,0) -> 
C23: =VLOOKUP(A23,search!A22:D521,3,0) ->  | D23: =VLOOKUP(A23,search!A22:D521,2,0) ->  | F23: =VLOOKUP(A23,search!A22:D521,4,0) -> 
C24: =VLOOKUP(A24,search!A23:D522,3,0) ->  | D24: =VLOOKUP(A24,search!A23:D522,2,0) ->  | F24: =VLOOKUP(A24,search!A23:D522,4,0) -> 
C25: =VLOOKUP(A25,search!A24:D523,3,0) ->  | D25: =VLOOKUP(A25,search!A24:D523,2,0) ->  | F25: =VLOOKUP(A25,search!A24:D523,4,0) -> 
C26: =VLOOKUP(A26,search!A25:D524,3,0) ->  | D26: =VLOOKUP(A26,search!A25:D524,2,0) ->  | F26: =VLOOKUP(A26,search!A25:D524,4,0) -> 
C27: =VLOOKUP(A27,search!A26:D525,3,0) ->  | D27: =VLOOKUP(A27,search!A26:D525,2,0) ->  | F27: =VLOOKUP(A27,search!A26:D525,4,0) -> 
C28: =VLOOKUP(A28,search!A27:D526,3,0) ->  | D28: =VLOOKUP(A28,search!A27:D526,2,0) ->  | F28: =VLOOKUP(A28,search!A27:D526,4,0) -> 
C29: =VLOOKUP(A29,search!A28:D527,3,0) ->  | D29: =VLOOKUP(A29,search!A28:D527,2,0) ->  | F29: =VLOOKUP(A29,search!A28:D527,4,0) -> 
C30: =VLOOKUP(A30,search!A29:D528,3,0) ->  | D30: =VLOOKUP(A30,search!A29:D528,2,0) ->  | F30: =VLOOKUP(A30,search!A29:D528,4,0) -> 
C31: =VLOOKUP(A31,search!A30:D529,3,0) ->  | D31: =VLOOKUP(A31,search!A30:D529,2,0) ->  | F31: =VLOOKUP(A31,search!A30:D529,4,0) -> 
C32: =VLOOKUP(A32,search!A31:D530,3,0) ->  | D32: =VLOOKUP(A32,search!A31:D530,2,0) ->  | F32: =VLOOKUP(A32,search!A31:D530,4,0) -> 
C33: =VLOOKUP(A33,search!A32:D531,3,0) ->  | D33: =VLOOKUP(A33,search!A32:D531,2,0) ->  | F33: =VLOOKUP(A33,search!A32:D531,4,0) -> 
C34: =VLOOKUP(A34,search!A33:D532,3,0) ->  | D34: =VLOOKUP(A34,search!A33:D532,2,0) ->  | F34: =VLOOKUP(A34,search!A33:D532,4,0) -> 
C35: =VLOOKUP(A35,search!A34:D533,3,0) ->  | D35: =VLOOKUP(A35,search!A34:D533,2,0) ->  | F35: =VLOOKUP(A35,search!A34:D533,4,0) -> 
C36: =VLOOKUP(A36,search!A35:D534,3,0) ->  | D36: =VLOOKUP(A36,search!A35:D534,2,0) ->  | F36: =VLOOKUP(A36,search!A35:D534,4,0) -> 
C37: =VLOOKUP(A37,search!A36:D535,3,0) ->  | D37: =VLOOKUP(A37,search!A36:D535,2,0) ->  | F37: =VLOOKUP(A37,search!A36:D535,4,0) -> 
C38: =VLOOKUP(A38,search!A37:D536,3,0) ->  | D38: =VLOOKUP(A38,search!A37:D536,2,0) ->  | F38: =VLOOKUP(A38,search!A37:D536,4,0) -> 
C39: =VLOOKUP(A39,search!A38:D537,3,0) ->  | D39: =VLOOKUP(A39,search!A38:D537,2,0) ->  | F39: =VLOOKUP(A39,search!A38:D537,4,0) -> 
C40: =VLOOKUP(A40,search!A39:D538,3,0) ->  | D40: =VLOOKUP(A40,search!A39:D538,2,0) ->  | F40: =VLOOKUP(A40,search!A39:D538,4,0) -> 
C41: =VLOOKUP(A41,search!A40:D539,3,0) ->  | D41: =VLOOKUP(A41,search!A40:D539,2,0) ->  | F41: =VLOOKUP(A41,search!A40:D539,4,0) -> 
C42: =VLOOKUP(A42,search!A41:D540,3,0) ->  | D42: =VLOOKUP(A42,search!A41:D540,2,0) ->  | F42: =VLOOKUP(A42,search!A41:D540,4,0) -> 
C43: =VLOOKUP(A43,search!A42:D541,3,0) ->  | D43: =VLOOKUP(A43,search!A42:D541,2,0) ->  | F43: =VLOOKUP(A43,search!A42:D541,4,0) -> 
C44: =VLOOKUP(A44,search!A43:D542,3,0) ->  | D44: =VLOOKUP(A44,search!A43:D542,2,0) ->  | F44: =VLOOKUP(A44,search!A43:D542,4,0) -> 
C45: =VLOOKUP(A45,search!A44:D543,3,0) ->  | D45: =VLOOKUP(A45,search!A44:D543,2,0) ->  | F45: =VLOOKUP(A45,search!A44:D543,4,0) -> 
C46: =VLOOKUP(A46,search!A45:D544,3,0) ->  | D46: =VLOOKUP(A46,search!A45:D544,2,0) ->  | F46: =VLOOKUP(A46,search!A45:D544,4,0) -> 
C47: =VLOOKUP(A47,search!A46:D545,3,0) ->  | D47: =VLOOKUP(A47,search!A46:D545,2,0) ->  | F47: =VLOOKUP(A47,search!A46:D545,4,0) -> 
C48: =VLOOKUP(A48,search!A47:D546,3,0) ->  | D48: =VLOOKUP(A48,search!A47:D546,2,0) ->  | F48: =VLOOKUP(A48,search!A47:D546,4,0) -> 
C49: =VLOOKUP(A49,search!A48:D547,3,0) ->  | D49: =VLOOKUP(A49,search!A48:D547,2,0) ->  | F49: =VLOOKUP(A49,search!A48:D547,4,0) -> 
C50: =VLOOKUP(A50,search!A49:D548,3,0) ->  | D50: =VLOOKUP(A50,search!A49:D548,2,0) ->  | F50: =VLOOKUP(A50,search!A49:D548,4,0) -> 
B51: 0 | E51: 0
A52: BASE NAP B2
A53: Bianko Pio
A54: Burlanol
A55: COLOR Х Top coft белый
A56: Candor sec
A57: DC 4354/2
A58: DERGO PEL/A
A59: DL 100
A60: FERROL
A61: FINISH 10
A62: FINISH LUX SP
A63: FIXAMIN PUK
A64: Finish
A65: Frankosol
A66: HF AMMORB,ROSA/20кг, Кондиционер-ополаскиватель
A67: Hydret-1 пятновыводное средство
A68: Hydret-2
A69: Hydret-3
A70: INGRALUX наппирующий препарат с жирующим действием
A71: LIVAL GL - черного цвета №22 краситель для гладкой кожи
A72: LIVAL GLF
A73: LIVAL LICKER KONZ
A74: LIVAL LO
A75: LIVAL VLF
A76: LIVAL VLF NEW
A77: Liguisan Жидкий щелочной концентрат для улучшения результатов стирки
A78: Lival Color GL
A79: Lival LM
A80: NAPPALAN 87 AG
A81: Neutrol A
A82: Neutrol L Нейтрализатор
A83: Nostat ASN
A84: Novaclin Fresh KE
A85: Novoclin Fresh AN усилитель
A86: Nubuk finish 86
A87: OLISSO Power Жидкое моющее ср-во для текстильных изделий
A88: Odosorb Spray
A89: Oxyplex
A90: PERSTABILIZATOR
A91: Penta aktiv
A92: Pentasol Ultra Активатор для удаления сильных загрязнений
A93: Piuma Clean
A94: Polysol light
A95: Preperc пятновыводное средство
A96: RepairX Glue 20мл клей для кожи
A97: SUPER NAPPANTE
A98: Tenapre Exquisit
A99: Teppich-clean
A100: Toglisudore пятновыводка
A101: Top H
A102: V 1
A103: V 2
A104: V 3 пятновыводное средство
A105: Viva OLEO
A106: Viva Starch
A107: Viva Zum
A108: WetX Z Licker
A109: ZEFIR SEC
A110: Zeitz-Komplet Set 7*0,25мл набор пятновыводных средств
A111: Айяче отбеливатель для стирки
A112: Активированный уголь BLC LO12x40 фракц, 1-3 мм
A113: Ариель
A114: Ас Мульти
A115: Белизна
A116: Био-био Средство для предварительной зачистки текстиля перед стиркой, аквачисткой
A117: Валик ролик липкий сменный Plik
A118: Валик ролик липкий с ручкой
A119: Ваниш
A120: Вернис брил
A121: Вернис глос
A122: Вернис натурел матов
A123: Вешалка 2,3 мм с белым напылением 500шт.
A124: Деприт 1
A125: Деприт 2
A126: Деприт 3
A127: Детерженте пьюмони LA 31010 Средство для стирки пуховых изделий в воде
A128: Директ старк
A129: Дистил
A130: Клин Ап
A131: Клип Конц Асепт
A132: Клип Мульти
A133: Колор Дайм Beige
A134: Колор Дайм light brown
A135: Колор Дайм бордовый Краситель для замши
A136: Колор Дайм бургунди
A137: Колор Дайм желтый золото
A138: Колор Дайм зеленый
A139: Колор Дайм коричневый светлый Краситель для замши
A140: Колор Дайм коричневый темный Краситель для замши
A141: Колор Дайм красный
A142: Колор Дайм оранжевый
A143: Колор Дайм охра Краситель для замши
A144: Колор Дайм серый Краситель для замши
A145: Колор Дайм синий Краситель для замши
A146: Колор Дайм черный Краситель для замши
A147: Колор Хромо Софт бургунди
A148: Колор Хромо Софт жёлтый лимон
A149: Колор Хромо Софт желто-золото
A150: Колор Хромо Софт зелёный
A151: Колор Хромо Софт коричневый
A152: Колор Хромо Софт красная вишня Краситель для гладкой кожи
A153: Колор Хромо Софт оранж
A154: Колор Хромо Софт охра Краситель для гладкой кожи
A155: Колор Хромо Софт пурпурный
A156: Колор Хромо Софт светло-красный
A157: Колор Хромо Софт синий
A158: Колор Хромо Софт черный Краситель для гладкой кожи
A159: Колор Хромо софт белый
A160: Колор дайм
A161: Колор хромо софт бордово-малиновый
A162: Колор хромо софт красный
A163: Колордайм Краска для замши бежевый
A164: Колофикс предотвращает и удаляет закрасы в водной среде
A165: Краситель для окраски меха в ручную
A166: Краска для гладкой кожи Хромософт белый 1кг
A167: Ланадол Авант
A168: Ланадол Актив
A169: Ланадол Апрет
A170: Ланадол Ликер
A171: Ленор
A172: Маркировочная лента
A173: Нубук финиш 86
A174: Нью колор велюр
A175: Олеодерм
A176: Перхлорэтилен
A177: Пренет А
A178: Пренет В
A179: Пренет Пур
A180: Пренет С
A181: Пьюма специальный препарат кондиционер для аквачистки пуховых изделий
A182: Пьюмино 18010 LA Смягчитель для тканей
A183: Рикончанте амано базе экстра конц,жирующее
A184: Сграсанте пер аква TS 27010 Препарат для удаления жировых пятен на текстиле, коже в воде
A185: Скаттанте антипьега Ополаскиватель , Облегчает глажение
A186: Скрепки для степлера Bostitch P3
A187: Степлер Bostitch P3
A188: Титаник LA 20010 Зачистное средство для удаления в вод, среде загрязнений любого типа
A189: Унистил
A190: Фисаторе нью колор велюр
A191: Хромософт
A192: Шуеде плюс
A193: Эссенция аква Концентрированная освежающая эссенция для стирки
A194: Делавон Сол
A195: Био Зим
A196: Биоксиджен
A197: Плума Винд
A198: ПЛума Софт АП
A199: Импертекс ЗЭД
A200: Декап
... 350 more rows

Sheet search
A1: Наименование | B1: Цена | C1: Объем | D1: Поставщики
A2: BASE NAP B2 | B2: 0.005
A3: Bianko Pio | B3: 445
A4: Burlanol | B4: 528.378
A5: COLOR Х Top coft белый | B5: 0.03
A6: Candor sec | B6: 454.464
A7: DC 4354/2 | B7: 355.933
A8: DERGO PEL/A | B8: 0.001
A9: DL 100 | B9: 0.002
A10: FERROL | B10: 0.02
A11: FINISH 10 | B11: 0.005
A12: FINISH LUX SP | B12: 0.003
A13: FIXAMIN PUK | B13: 2327 | C13: 1 | D13: Диана-трест
A14: Finish | B14: 204.95 | C14: 10
A15: Frankosol | B15: 704 | C15: 5 | D15: универсум,ЦКТ
A16: HF AMMORB,ROSA/20кг, Кондиционер-ополаскиватель | B16: 105.65 | C16: 20 | D16: Диана-трест
A17: Hydret-1 пятновыводное средство | B17: 640.27 | C17: 5 | D17: универсум
A18: Hydret-2 | B18: 581.27 | C18: 5 | D18: универсум
A19: Hydret-3 | B19: 513.418 | C19: 5 | D19: универсум
A20: INGRALUX наппирующий препарат с жирующим действием | B20: 1192.3 | C20: 10 | D20: Сана ооо
A21: LIVAL GL - черного цвета №22 краситель для гладкой кожи | B21: 1379.85 | C21: 1 | D21: Диана-трест
A22: LIVAL GLF | B22: 1218.05 | C22: 5 | D22: Диана-трест
A23: LIVAL LICKER KONZ | B23: 466.4 | C23: 20
A24: LIVAL LO | B24: 0.001 | C24: 20 | D24: интернешнл инастриал ком
A25: LIVAL VLF | B25: 509.1 | C25: 20 | D25: ЦКТ
A26: LIVAL VLF NEW | C26: 20
A27: Liguisan Жидкий щелочной концентрат для улучшения результатов стирки | B27: 121.77 | C27: 30 | D27: Диана-трест
A28: Lival Color GL | B28: 967 | C28: 1
A29: Lival LM | B29: 316.89 | C29: 20
A30: NAPPALAN 87 AG | B30: 740 | C30: 5 | D30: Велкон,ЦКТ,Бест-Сервис
A31: Neutrol A | B31: 209.26 | C31: 25 | D31: универсум
A32: Neutrol L Нейтрализатор | B32: 270 | C32: 5 | D32: ЦКТ
A33: Nostat ASN | B33: 0.001
A34: Novaclin Fresh KE | B34: 409.84 | C34: 25 | D34: универсум
A35: Novoclin Fresh AN усилитель | B35: 479.62 | C35: 25 | D35: универсум
A36: Nubuk finish 86 | B36: 0 | C36: 5
A37: OLISSO Power Жидкое моющее ср-во для текстильных изделий | B37: 213.15 | C37: 35 | D37: Диана-трест
A38: Odosorb Spray | B38: 934.56
A39: Oxyplex | B39: 149.759 | C39: 25 | D39: Диана-трест
A40: PERSTABILIZATOR | B40: 0.01 | C40: 1
A41: Penta aktiv | B41: 133.96 | C41: 30 | D41: Диана-трест
A42: Pentasol Ultra Активатор для удаления сильных загрязнений | B42: 342.37 | D42: Диана-трест
A43: Piuma Clean | B43: 188.096 | C43: 10
A44: Polysol light | B44: 0.01
A45: Preperc пятновыводное средство | B45: 291.07 | C45: 1
A46: RepairX Glue 20мл клей для кожи | B46: 1159.73
A47: SUPER NAPPANTE | B47: 1110
A48: Tenapre Exquisit | B48: 0.01 | C48: 30
A49: Teppich-clean | B49: 0.01
A50: Toglisudore пятновыводка | B50: 484.35
A51: Top H | B51: 1219.5 | C51: 1 | D51: Сана ооо
A52: V 1 | B52: 0.002 | C52: 5 | D52: универсум
A53: V 2 | B53: 0.001 | C53: 5 | D53: универсум
A54: V 3 пятновыводное средство | B54: 628.7 | C54: 5 | D54: универсум
A55: Viva OLEO | B55: 0.001
A56: Viva Starch | B56: 265.38 | C56: 30 | D56: универсум
A57: Viva Zum | B57: 0.008 | C57: 5
A58: WetX Z Licker | B58: 0.001 | C58: 10
A59: ZEFIR SEC | B59: 930 | C59: 5
A60: Zeitz-Komplet Set 7*0,25мл набор пятновыводных средств | B60: 2073.85 | C60: 1
A61: Айяче отбеливатель для стирки | B61: 452.42 | C61: 5
A62: Активированный уголь BLC LO12x40 фракц, 1-3 мм | B62: 117 | C62: 50
A63: Ариель | B63: 68 | C63: 15 | D63: ЗАЙЦЕВ
A64: Ас Мульти | B64: 0.042
A65: Белизна | B65: 33.59 | C65: 1 | D65: избайт
A66: Био-био Средство для предварительной зачистки текстиля перед стиркой, аквачисткой | B66: 286.52 | C66: 10 | D66: Бест-сервис
A67: Валик ролик липкий сменный Plik | B67: 142 | C67: 1 | D67: текскепро
A68: Валик ролик липкий с ручкой | B68: 135 | C68: 1 | D68: текскепро
A69: Ваниш | B69: 156.85 | C69: 1 | D69: избайт
A70: Вернис брил | B70: 666.06 | C70: 1
A71: Вернис глос | B71: 941.01 | C71: 1
A72: Вернис натурел матов | B72: 1132.87 | C72: 1
A73: Вешалка 2,3 мм с белым напылением 500шт. | B73: 1749.94 | C73: 1 | D73: ГК аккорд
A74: Деприт 1 | B74: 0.008 | C74: 5
A75: Деприт 2 | B75: 0.017 | C75: 5
A76: Деприт 3 | B76: 0.005 | C76: 5
A77: Детерженте пьюмони LA 31010 Средство для стирки пуховых изделий в воде | B77: 261 | C77: 10 | D77: Бест-сервис
A78: Директ старк | B78: 0.002 | C78: 10
A79: Дистил | B79: 1616.54 | C79: 4 | D79: ЦКТ,текскепро
A80: Клин Ап | B80: 0.007
A81: Клип Конц Асепт | B81: 393.66 | C81: 22 | D81: текскепро
A82: Клип Мульти | B82: 0.001 | C82: 25
A83: Колор Дайм Beige | B83: 1368.23 | C83: 1 | D83: Диана-трест,текскепро
A84: Колор Дайм light brown | B84: 1000 | C84: 1 | D84: Диана-трест
A85: Колор Дайм бордовый Краситель для замши | B85: 1186.34 | C85: 1 | D85: текскепро
A86: Колор Дайм бургунди | B86: 1,0 | C86: 1 | D86: Диана-трест
A87: Колор Дайм желтый золото | B87: 1186.34 | C87: 1 | D87: Диана-трест,текскепро
A88: Колор Дайм зеленый | B88: 1186,34 | C88: 1 | D88: Диана-трест,текскепро
A89: Колор Дайм коричневый светлый Краситель для замши | B89: 1094.48 | C89: 1 | D89: Диана-трест,текскепро
A90: Колор Дайм коричневый темный Краситель для замши | B90: 901.74 | C90: 1 | D90: Диана-трест,текскепро
A91: Колор Дайм красный | B91: 1107.24 | C91: 1 | D91: Диана-трест,текскепро
A92: Колор Дайм оранжевый | B92: 1000 | C92: 1 | D92: Диана-трест
A93: Колор Дайм охра Краситель для замши | B93: 980.08 | C93: 1 | D93: Диана-трест,текскепро
A94: Колор Дайм серый Краситель для замши | B94: 1248.785 | C94: 1 | D94: Диана-трест,текскепро
A95: Колор Дайм синий Краситель для замши | B95: 1065.69 | C95: 1 | D95: Диана-трест,текскепро
A96: Колор Дайм черный Краситель для замши | B96: 901.74 | C96: 1 | D96: Диана-трест,текскепро
A97: Колор Хромо Софт бургунди | B97: 500 | C97: 1 | D97: Диана-трест,текскепро
A98: Колор Хромо Софт жёлтый лимон | B98: 500 | C98: 1 | D98: Диана-трест
A99: Колор Хромо Софт желто-золото | B99: 1233.52 | C99: 1 | D99: Диана-трест,текскепро
A100: Колор Хромо Софт зелёный | B100: 1302.05 | C100: 1 | D100: Диана-трест,текскепро
A101: Колор Хромо Софт коричневый | B101: 1243.12 | C101: 1 | D101: Диана-трест,текскепро
A102: Колор Хромо Софт красная вишня Краситель для гладкой кожи | B102: 1497.83 | C102: 1 | D102: Диана-трест,текскепро
A103: Колор Хромо Софт оранж | B103: 1000 | C103: 1 | D103: Диана-трест,текскепро
A104: Колор Хромо Софт охра Краситель для гладкой кожи | B104: 1142.14 | C104: 1 | D104: Диана-трест,текскепро
A105: Колор Хромо Софт пурпурный | B105: 500 | C105: 1 | D105: Диана-трест
A106: Колор Хромо Софт светло-красный | B106: 1494.31 | C106: 1 | D106: Диана-трест,текскепро
A107: Колор Хромо Софт синий | B107: 1302.5 | C107: 1 | D107: Диана-трест,текскепро
A108: Колор Хромо Софт черный Краситель для гладкой кожи | B108: 1050.78 | C108: 1 | D108: Диана-трест,текскепро
A109: Колор Хромо софт белый | B109: 1217.06 | C109: 1 | D109: текскепро,универсум
A110: Колор дайм | B110: 799.246 | C110: 1 | D110: Диана-трест
A111: Колор хромо софт бордово-малиновый | B111: 1510.38 | C111: 1 | D111: текскепро,диана-трест
A112: Колор хромо софт красный | B112: 1182.04 | C112: 1 | D112: Диана-трест
A113: Колордайм Краска для замши бежевый | B113: 1632 | C113: 1 | D113: ЦКТ
A114: Колофикс предотвращает и удаляет закрасы в водной среде | B114: 922.88 | C114: 5 | D114: текскепро
A115: Краситель для окраски меха в ручную | B115: 6808.5 | C115: 1
A116: Краска для гладкой кожи Хромософт белый 1кг | B116: 1710 | C116: 1 | D116: ЦКТ
A117: Ланадол Авант | B117: 257.2 | C117: 24 | D117: текскепро
A118: Ланадол Актив | B118: 306.45 | C118: 24 | D118: текскепро
A119: Ланадол Апрет | B119: 0.001
A120: Ланадол Ликер | B120: 0.001
A121: Ленор | B121: 106.45 | C121: 2 | D121: избайт
A122: Маркировочная лента | B122: 540
A123: Нубук финиш 86 | B123: 485 | C123: 5
A124: Нью колор велюр | B124: 2422.586
A125: Олеодерм | B125: 300.08 | C125: 22 | D125: текскепро
A126: Перхлорэтилен | B126: 105 | C126: 330 | D126: УНИВЕРСАЛ,,БИНА-ГРУ
A127: Пренет А | B127: 506.73 | C127: 4.5 | D127: текскепро
A128: Пренет В | B128: 449.67 | C128: 4.5 | D128: Текскепро,ЦКТ
A129: Пренет Пур | B129: 279.59 | C129: 22 | D129: текскепро
A130: Пренет С | B130: 466 | C130: 4.5 | D130: текскепро
A131: Пьюма специальный препарат кондиционер для аквачистки пуховых изделий | B131: 265.5 | C131: 10 | D131: Бест-сервис
A132: Пьюмино 18010 LA Смягчитель для тканей | B132: 177.84 | C132: 10 | D132: Бест-сервис
A133: Рикончанте амано базе экстра конц,жирующее | B133: 477 | C133: 1 | D133: Бест-сервис
A134: Сграсанте пер аква TS 27010 Препарат для удаления жировых пятен на текстиле, коже в воде | B134: 449.45 | C134: 10 | D134: Бест-сервис
A135: Скаттанте антипьега Ополаскиватель , Облегчает глажение | B135: 649.7 | C135: 10 | D135: Бест-сервис
A136: Скрепки для степлера Bostitch P3 | B136: 129.602 | C136: 1
A137: Степлер Bostitch P3 | B137: 1975.91 | C137: 1
A138: Титаник LA 20010 Зачистное средство для удаления в вод, среде загрязнений любого типа | B138: 279 | C138: 10 | D138: Бест-сервис
A139: Унистил | B139: 0.029
A140: Фисаторе нью колор велюр | B140: 308.5
A141: Хромософт | B141: 487.15 | C141: 1
A142: Шуеде плюс | B142: 318.1 | C142: 5 | D142: Текскепро,ЦКТ
A143: Эссенция аква Концентрированная освежающая эссенция для стирки | B143: 1021.5 | C143: 1 | D143: Бест-сервис
A144: Делавон Сол | B144: 351 | C144: 10 | D144: велкон,ЦКТ
A145: Био Зим | B145: 360 | D145: велкон
A146: Биоксиджен | B146: 385 | C146: 10 | D146: велкон,ЦКТ
A147: Плума Винд | B147: 270 | C147: 10 | D147: велкон,ЦКТ
A148: ПЛума Софт АП | B148: 310 | C148: 10 | D148: велкон
A149: Импертекс ЗЭД
A150: Декап | B150: 784.06 | D150: текскепро
A151: Viva oxy | B151: 190.28 | C151: 30 | D151: универсум
A152: Ariel Delta | B152: 170.45 | C152: 20 | D152: ЗАЙЦЕВ
A153: Ariel Additive Super D 3,1 | B153: 386.47 | C153: 20 | D153: ЗАЙЦЕВ
A154: Ariel Additive Super B 2,1 | B154: 158.28 | C154: 20 | D154: ЗАЙЦЕВ
A155: Lenor Ariel | C155: 20 | D155: ЗАЙЦЕВ
A156: Налатоп | B156: 1024.7 | C156: 1 | D156: текскепро
A157: Стакофлекс | B157: 5.19 | C157: 1 | D157: текскепро
A158: ДАСТ, порошковые блестки | D158: текскепро
A159: золотой цвет | B159: 17.38 | C159: 1 | D159: текскепро
A160: перламутровый цвет | B160: 15.08 | C160: 1 | D160: текскепро
A161: А-Стронг | B161: 275 | C161: 10 | D161: велкон
A162: Фиссаторе Лана | C162: 2
A163: Тинта соттоне черный | B163: 1362.9 | C163: 1 | D163: Бест-сервис
A164: Тинта соттоне синии | B164: 1644.72 | C164: 1 | D164: Бест-сервис
A165: Тинта соттоне синий джинс | C165: 1 | D165: Бест-сервис
A166: Пенетранте | C166: 1 | D166: Бест-сервис

Sheet Справочники
A1: Поставщики
A2: Наименование | B2: Телефон

Sheet 29.09.14
A1: Наименование | B1: Кол-во | C1: Объем | D1: Цена за ед | E1: Сумма | F1: Поставщик
A2: Активированный уголь BLC LO12x40 фракц, 1-3 мм | B2: 1 | C2: =VLOOKUP(A2,search!A1:D500,3,0) -> 50 | D2: =VLOOKUP(A2,search!A1:D500,2,0) -> 117 | E2: =B2*C2*D2 -> 5850 | F2: =VLOOKUP(A2,search!A1:D500,4,0) -> 0 | H2: Очистить заявку
A3: Дистил | B3: 4 | C3: =VLOOKUP(A3,search!A2:D501,3,0) -> 4 | D3: =VLOOKUP(A3,search!A2:D501,2,0) -> 1616.54 | E3: =B3*C3*D3 -> 25864.64 | F3: =VLOOKUP(A3,search!A2:D501,4,0) -> ЦКТ,текскепро
A4: Neutrol A | B4: 1 | C4: =VLOOKUP(A4,search!A3:D502,3,0) -> 25 | D4: =VLOOKUP(A4,search!A3:D502,2,0) -> 209.26 | E4: 5231.5 | F4: =VLOOKUP(A4,search!A3:D502,4,0) -> универсум
A5: Novoclin Fresh AN усилитель | B5: 2 | C5: =VLOOKUP(A5,search!A4:D503,3,0) -> 25 | D5: =VLOOKUP(A5,search!A4:D503,2,0) -> 479.62 | E5: 23981 | F5: =VLOOKUP(A5,search!A4:D503,4,0) -> универсум
A6: Декап | B6: 2 | C6: =VLOOKUP(A6,search!A5:D504,3,0) -> 0 | D6: =VLOOKUP(A6,search!A5:D504,2,0) -> 784.06 | E6: 0 | F6: =VLOOKUP(A6,search!A5:D504,4,0) -> текскепро
A7: Колор Дайм бордовый Краситель для замши | B7: 2 | C7: =VLOOKUP(A7,search!A6:D505,3,0) -> 1 | D7: =VLOOKUP(A7,search!A6:D505,2,0) -> 1186.34 | E7: 2372.68 | F7: =VLOOKUP(A7,search!A6:D505,4,0) -> текскепро
A8: Колор Дайм серый Краситель для замши | B8: 2 | C8: =VLOOKUP(A8,search!A7:D506,3,0) -> 1 | D8: =VLOOKUP(A8,search!A7:D506,2,0) -> 1248.785 | E8: 2497.57 | F8: =VLOOKUP(A8,search!A7:D506,4,0) -> Диана-трест,текскепро
A9: Колор Хромо Софт жёлтый лимон | B9: 2 | C9: =VLOOKUP(A9,search!A8:D507,3,0) -> 1 | D9: =VLOOKUP(A9,search!A8:D507,2,0) -> 500 | E9: 1000 | F9: =VLOOKUP(A9,search!A8:D507,4,0) -> Диана-трест | I9: =NOW() -> 2014-09-30T14:25:04.010
A10: Колор Хромо Софт красная вишня Краситель для гладкой кожи | B10: 2 | C10: =VLOOKUP(A10,search!A9:D508,3,0) -> 1 | D10: =VLOOKUP(A10,search!A9:D508,2,0) -> 1497.83 | E10: 2995.66 | F10: =VLOOKUP(A10,search!A9:D508,4,0) -> Диана-трест,текскепро
A11: LIVAL GLF | B11: 1 | C11: =VLOOKUP(A11,search!A10:D509,3,0) -> 5 | D11: =VLOOKUP(A11,search!A10:D509,2,0) -> 1218.05 | E11: 6090.25 | F11: =VLOOKUP(A11,search!A10:D509,4,0) -> Диана-трест
C12: =VLOOKUP(A12,search!A11:D510,3,0) ->  | D12: =VLOOKUP(A12,search!A11:D510,2,0) ->  | F12: =VLOOKUP(A12,search!A11:D510,4,0) -> 
C13: =VLOOKUP(A13,search!A12:D511,3,0) ->  | D13: =VLOOKUP(A13,search!A12:D511,2,0) ->  | F13: =VLOOKUP(A13,search!A12:D511,4,0) -> 
C14: =VLOOKUP(A14,search!A13:D512,3,0) ->  | D14: =VLOOKUP(A14,search!A13:D512,2,0) ->  | F14: =VLOOKUP(A14,search!A13:D512,4,0) -> 
C15: =VLOOKUP(A15,search!A14:D513,3,0) ->  | D15: =VLOOKUP(A15,search!A14:D513,2,0) ->  | F15: =VLOOKUP(A15,search!A14:D513,4,0) -> 
C16: =VLOOKUP(A16,search!A15:D514,3,0) ->  | D16: =VLOOKUP(A16,search!A15:D514,2,0) ->  | F16: =VLOOKUP(A16,search!A15:D514,4,0) -> 
C17: =VLOOKUP(A17,search!A16:D515,3,0) ->  | D17: =VLOOKUP(A17,search!A16:D515,2,0) ->  | F17: =VLOOKUP(A17,search!A16:D515,4,0) -> 
C18: =VLOOKUP(A18,search!A17:D516,3,0) ->  | D18: =VLOOKUP(A18,search!A17:D516,2,0) ->  | F18: =VLOOKUP(A18,search!A17:D516,4,0) -> 
C19: =VLOOKUP(A19,search!A18:D517,3,0) ->  | D19: =VLOOKUP(A19,search!A18:D517,2,0) ->  | F19: =VLOOKUP(A19,search!A18:D517,4,0) -> 
C20: =VLOOKUP(A20,search!A19:D518,3,0) ->  | D20: =VLOOKUP(A20,search!A19:D518,2,0) ->  | F20: =VLOOKUP(A20,search!A19:D518,4,0) -> 
C21: =VLOOKUP(A21,search!A20:D519,3,0) ->  | D21: =VLOOKUP(A21,search!A20:D519,2,0) ->  | F21: =VLOOKUP(A21,search!A20:D519,4,0) -> 
C22: =VLOOKUP(A22,search!A21:D520,3,0) ->  | D22: =VLOOKUP(A22,search!A21:D520,2,0) ->  | F22: =VLOOKUP(A22,search!A21:D520,4,0) -> 
C23: =VLOOKUP(A23,search!A22:D521,3,0) ->  | D23: =VLOOKUP(A23,search!A22:D521,2,0) ->  | F23: =VLOOKUP(A23,search!A22:D521,4,0) -> 
C24: =VLOOKUP(A24,search!A23:D522,3,0) ->  | D24: =VLOOKUP(A24,search!A23:D522,2,0) ->  | F24: =VLOOKUP(A24,search!A23:D522,4,0) -> 
C25: =VLOOKUP(A25,search!A24:D523,3,0) ->  | D25: =VLOOKUP(A25,search!A24:D523,2,0) ->  | F25: =VLOOKUP(A25,search!A24:D523,4,0) -> 
C26: =VLOOKUP(A26,search!A25:D524,3,0) ->  | D26: =VLOOKUP(A26,search!A25:D524,2,0) ->  | F26: =VLOOKUP(A26,search!A25:D524,4,0) -> 
C27: =VLOOKUP(A27,search!A26:D525,3,0) ->  | D27: =VLOOKUP(A27,search!A26:D525,2,0) ->  | F27: =VLOOKUP(A27,search!A26:D525,4,0) -> 
C28: =VLOOKUP(A28,search!A27:D526,3,0) ->  | D28: =VLOOKUP(A28,search!A27:D526,2,0) ->  | F28: =VLOOKUP(A28,search!A27:D526,4,0) -> 
C29: =VLOOKUP(A29,search!A28:D527,3,0) ->  | D29: =VLOOKUP(A29,search!A28:D527,2,0) ->  | F29: =VLOOKUP(A29,search!A28:D527,4,0) -> 
C30: =VLOOKUP(A30,search!A29:D528,3,0) ->  | D30: =VLOOKUP(A30,search!A29:D528,2,0) ->  | F30: =VLOOKUP(A30,search!A29:D528,4,0) -> 
C31: =VLOOKUP(A31,search!A30:D529,3,0) ->  | D31: =VLOOKUP(A31,search!A30:D529,2,0) ->  | F31: =VLOOKUP(A31,search!A30:D529,4,0) -> 
C32: =VLOOKUP(A32,search!A31:D530,3,0) ->  | D32: =VLOOKUP(A32,search!A31:D530,2,0) ->  | F32: =VLOOKUP(A32,search!A31:D530,4,0) -> 
C33: =VLOOKUP(A33,search!A32:D531,3,0) ->  | D33: =VLOOKUP(A33,search!A32:D531,2,0) ->  | F33: =VLOOKUP(A33,search!A32:D531,4,0) -> 
C34: =VLOOKUP(A34,search!A33:D532,3,0) ->  | D34: =VLOOKUP(A34,search!A33:D532,2,0) ->  | F34: =VLOOKUP(A34,search!A33:D532,4,0) -> 
C35: =VLOOKUP(A35,search!A34:D533,3,0) ->  | D35: =VLOOKUP(A35,search!A34:D533,2,0) ->  | F35: =VLOOKUP(A35,search!A34:D533,4,0) -> 
C36: =VLOOKUP(A36,search!A35:D534,3,0) ->  | D36: =VLOOKUP(A36,search!A35:D534,2,0) ->  | F36: =VLOOKUP(A36,search!A35:D534,4,0) -> 
C37: =VLOOKUP(A37,search!A36:D535,3,0) ->  | D37: =VLOOKUP(A37,search!A36:D535,2,0) ->  | F37: =VLOOKUP(A37,search!A36:D535,4,0) -> 
C38: =VLOOKUP(A38,search!A37:D536,3,0) ->  | D38: =VLOOKUP(A38,search!A37:D536,2,0) ->  | F38: =VLOOKUP(A38,search!A37:D536,4,0) -> 
C39: =VLOOKUP(A39,search!A38:D537,3,0) ->  | D39: =VLOOKUP(A39,search!A38:D537,2,0) ->  | F39: =VLOOKUP(A39,search!A38:D537,4,0) -> 
C40: =VLOOKUP(A40,search!A39:D538,3,0) ->  | D40: =VLOOKUP(A40,search!A39:D538,2,0) ->  | F40: =VLOOKUP(A40,search!A39:D538,4,0) -> 
C41: =VLOOKUP(A41,search!A40:D539,3,0) ->  | D41: =VLOOKUP(A41,search!A40:D539,2,0) ->  | F41: =VLOOKUP(A41,search!A40:D539,4,0) -> 
C42: =VLOOKUP(A42,search!A41:D540,3,0) ->  | D42: =VLOOKUP(A42,search!A41:D540,2,0) ->  | F42: =VLOOKUP(A42,search!A41:D540,4,0) -> 
C43: =VLOOKUP(A43,search!A42:D541,3,0) ->  | D43: =VLOOKUP(A43,search!A42:D541,2,0) ->  | F43: =VLOOKUP(A43,search!A42:D541,4,0) -> 
C44: =VLOOKUP(A44,search!A43:D542,3,0) ->  | D44: =VLOOKUP(A44,search!A43:D542,2,0) ->  | F44: =VLOOKUP(A44,search!A43:D542,4,0) -> 
C45: =VLOOKUP(A45,search!A44:D543,3,0) ->  | D45: =VLOOKUP(A45,search!A44:D543,2,0) ->  | F45: =VLOOKUP(A45,search!A44:D543,4,0) -> 
C46: =VLOOKUP(A46,search!A45:D544,3,0) ->  | D46: =VLOOKUP(A46,search!A45:D544,2,0) ->  | F46: =VLOOKUP(A46,search!A45:D544,4,0) -> 
C47: =VLOOKUP(A47,search!A46:D545,3,0) ->  | D47: =VLOOKUP(A47,search!A46:D545,2,0) ->  | F47: =VLOOKUP(A47,search!A46:D545,4,0) -> 
C48: =VLOOKUP(A48,search!A47:D546,3,0) ->  | D48: =VLOOKUP(A48,search!A47:D546,2,0) ->  | F48: =VLOOKUP(A48,search!A47:D546,4,0) -> 
C49: =VLOOKUP(A49,search!A48:D547,3,0) ->  | D49: =VLOOKUP(A49,search!A48:D547,2,0) ->  | F49: =VLOOKUP(A49,search!A48:D547,4,0) -> 
C50: =VLOOKUP(A50,search!A49:D548,3,0) ->  | D50: =VLOOKUP(A50,search!A49:D548,2,0) ->  | F50: =VLOOKUP(A50,search!A49:D548,4,0) -> 
B51: 0 | E51: 0
A52: BASE NAP B2
A53: Bianko Pio
A54: Burlanol
A55: COLOR Х Top coft белый
A56: Candor sec
A57: DC 4354/2
A58: DERGO PEL/A
A59: DL 100
A60: FERROL
A61: FINISH 10
A62: FINISH LUX SP
A63: FIXAMIN PUK
A64: Finish
A65: Frankosol
A66: HF AMMORB,ROSA/20кг, Кондиционер-ополаскиватель
A67: Hydret-1 пятновыводное средство
A68: Hydret-2
A69: Hydret-3
A70: INGRALUX наппирующий препарат с жирующим действием
A71: LIVAL GL - черного цвета №22 краситель для гладкой кожи
A72: LIVAL GLF
A73: LIVAL LICKER KONZ
A74: LIVAL LO
A75: LIVAL VLF
A76: LIVAL VLF NEW
A77: Liguisan Жидкий щелочной концентрат для улучшения результатов стирки
A78: Lival Color GL
A79: Lival LM
A80: NAPPALAN 87 AG
A81: Neutrol A
A82: Neutrol L Нейтрализатор
A83: Nostat ASN
A84: Novaclin Fresh KE
A85: Novoclin Fresh AN усилитель
A86: Nubuk finish 86
A87: OLISSO Power Жидкое моющее ср-во для текстильных изделий
A88: Odosorb Spray
A89: Oxyplex
A90: PERSTABILIZATOR
A91: Penta aktiv
A92: Pentasol Ultra Активатор для удаления сильных загрязнений
A93: Piuma Clean
A94: Polysol light
A95: Preperc пятновыводное средство
A96: RepairX Glue 20мл клей для кожи
A97: SUPER NAPPANTE
A98: Tenapre Exquisit
A99: Teppich-clean
A100: Toglisudore пятновыводка
A101: Top H
A102: V 1
A103: V 2
A104: V 3 пятновыводное средство
A105: Viva OLEO
A106: Viva Starch
A107: Viva Zum
A108: WetX Z Licker
A109: ZEFIR SEC
A110: Zeitz-Komplet Set 7*0,25мл набор пятновыводных средств
A111: Айяче отбеливатель для стирки
A112: Активированный уголь BLC LO12x40 фракц, 1-3 мм
A113: Ариель
A114: Ас Мульти
A115: Белизна
A116: Био-био Средство для предварительной зачистки текстиля перед стиркой, аквачисткой
A117: Валик ролик липкий сменный Plik
A118: Валик ролик липкий с ручкой
A119: Ваниш
A120: Вернис брил
A121: Вернис глос
A122: Вернис натурел матов
A123: Вешалка 2,3 мм с белым напылением 500шт.
A124: Деприт 1
A125: Деприт 2
A126: Деприт 3
A127: Детерженте пьюмони LA 31010 Средство для стирки пуховых изделий в воде
A128: Директ старк
A129: Дистил
A130: Клин Ап
A131: Клип Конц Асепт
A132: Клип Мульти
A133: Колор Дайм Beige
A134: Колор Дайм light brown
A135: Колор Дайм бордовый Краситель для замши
A136: Колор Дайм бургунди
A137: Колор Дайм желтый золото
A138: Колор Дайм зеленый
A139: Колор Дайм коричневый светлый Краситель для замши
A140: Колор Дайм коричневый темный Краситель для замши
A141: Колор Дайм красный
A142: Колор Дайм оранжевый
A143: Колор Дайм охра Краситель для замши
A144: Колор Дайм серый Краситель для замши
A145: Колор Дайм синий Краситель для замши
A146: Колор Дайм черный Краситель для замши
A147: Колор Хромо Софт бургунди
A148: Колор Хромо Софт жёлтый лимон
A149: Колор Хромо Софт желто-золото
A150: Колор Хромо Софт зелёный
A151: Колор Хромо Софт коричневый
A152: Колор Хромо Софт красная вишня Краситель для гладкой кожи
A153: Колор Хромо Софт оранж
A154: Колор Хромо Софт охра Краситель для гладкой кожи
A155: Колор Хромо Софт пурпурный
A156: Колор Хромо Софт светло-красный
A157: Колор Хромо Софт синий
A158: Колор Хромо Софт черный Краситель для гладкой кожи
A159: Колор Хромо софт белый
A160: Колор дайм
A161: Колор хромо софт бордово-малиновый
A162: Колор хромо софт красный
A163: Колордайм Краска для замши бежевый
A164: Колофикс предотвращает и удаляет закрасы в водной среде
A165: Краситель для окраски меха в ручную
A166: Краска для гладкой кожи Хромософт белый 1кг
A167: Ланадол Авант
A168: Ланадол Актив
A169: Ланадол Апрет
A170: Ланадол Ликер
A171: Ленор
A172: Маркировочная лента
A173: Нубук финиш 86
A174: Нью колор велюр
A175: Олеодерм
A176: Перхлорэтилен
A177: Пренет А
A178: Пренет В
A179: Пренет Пур
A180: Пренет С
A181: Пьюма специальный препарат кондиционер для аквачистки пуховых изделий
A182: Пьюмино 18010 LA Смягчитель для тканей
A183: Рикончанте амано базе экстра конц,жирующее
A184: Сграсанте пер аква TS 27010 Препарат для удаления жировых пятен на текстиле, коже в воде
A185: Скаттанте антипьега Ополаскиватель , Облегчает глажение
A186: Скрепки для степлера Bostitch P3
A187: Степлер Bostitch P3
A188: Титаник LA 20010 Зачистное средство для удаления в вод, среде загрязнений любого типа
A189: Унистил
A190: Фисаторе нью колор велюр
A191: Хромософт
A192: Шуеде плюс
A193: Эссенция аква Концентрированная освежающая эссенция для стирки
A194: Делавон Сол
A195: Био Зим
A196: Биоксиджен
A197: Плума Винд
A198: ПЛума Софт АП
A199: Импертекс ЗЭД
A200: Декап
... 350 more rows

Sheet 30.09.2014 14.21
A1: Наименование | B1: Кол-во | C1: Объем | D1: Цена за ед | E1: Сумма | F1: Поставщик
A2: Активированный уголь BLC LO12x40 фракц, 1-3 мм | B2: 1 | C2: =VLOOKUP(A2,search!A1:D500,3,0) -> 50 | D2: =VLOOKUP(A2,search!A1:D500,2,0) -> 117 | E2: =B2*C2*D2 -> 5850 | F2: =VLOOKUP(A2,search!A1:D500,4,0) -> 0
A3: Дистил | B3: 4 | C3: =VLOOKUP(A3,search!A2:D501,3,0) -> 4 | D3: =VLOOKUP(A3,search!A2:D501,2,0) -> 1616.54 | E3: =B3*C3*D3 -> 25864.64 | F3: =VLOOKUP(A3,search!A2:D501,4,0) -> ЦКТ,текскепро
A4: Neutrol A | B4: 1 | C4: =VLOOKUP(A4,search!A3:D502,3,0) -> 25 | D4: =VLOOKUP(A4,search!A3:D502,2,0) -> 209.26 | E4: 5231.5 | F4: =VLOOKUP(A4,search!A3:D502,4,0) -> универсум
A5: Novoclin Fresh AN усилитель | B5: 2 | C5: =VLOOKUP(A5,search!A4:D503,3,0) -> 25 | D5: =VLOOKUP(A5,search!A4:D503,2,0) -> 479.62 | E5: 23981 | F5: =VLOOKUP(A5,search!A4:D503,4,0) -> универсум
A6: Декап | B6: 2 | C6: =VLOOKUP(A6,search!A5:D504,3,0) -> 0 | D6: =VLOOKUP(A6,search!A5:D504,2,0) -> 784.06 | E6: 0 | F6: =VLOOKUP(A6,search!A5:D504,4,0) -> текскепро
A7: Колор Дайм бордовый Краситель для замши | B7: 2 | C7: =VLOOKUP(A7,search!A6:D505,3,0) -> 1 | D7: =VLOOKUP(A7,search!A6:D505,2,0) -> 1186.34 | E7: 2372.68 | F7: =VLOOKUP(A7,search!A6:D505,4,0) -> текскепро
A8: Колор Дайм серый Краситель для замши | B8: 2 | C8: =VLOOKUP(A8,search!A7:D506,3,0) -> 1 | D8: =VLOOKUP(A8,search!A7:D506,2,0) -> 1248.785 | E8: 2497.57 | F8: =VLOOKUP(A8,search!A7:D506,4,0) -> Диана-трест,текскепро
A9: Колор Хромо Софт жёлтый лимон | B9: 2 | C9: =VLOOKUP(A9,search!A8:D507,3,0) -> 1 | D9: =VLOOKUP(A9,search!A8:D507,2,0) -> 500 | E9: 1000 | F9: =VLOOKUP(A9,search!A8:D507,4,0) -> Диана-трест | I9: =NOW() -> 2014-09-30T14:25:04.010
A10: Колор Хромо Софт красная вишня Краситель для гладкой кожи | B10: 2 | C10: =VLOOKUP(A10,search!A9:D508,3,0) -> 1 | D10: =VLOOKUP(A10,search!A9:D508,2,0) -> 1497.83 | E10: 2995.66 | F10: =VLOOKUP(A10,search!A9:D508,4,0) -> Диана-трест,текскепро
A11: LIVAL GLF | B11: 1 | C11: =VLOOKUP(A11,search!A10:D509,3,0) -> 5 | D11: =VLOOKUP(A11,search!A10:D509,2,0) -> 1218.05 | E11: 6090.25 | F11: =VLOOKUP(A11,search!A10:D509,4,0) -> Диана-трест
C12: =VLOOKUP(A12,search!A11:D510,3,0) ->  | D12: =VLOOKUP(A12,search!A11:D510,2,0) ->  | F12: =VLOOKUP(A12,search!A11:D510,4,0) -> 
C13: =VLOOKUP(A13,search!A12:D511,3,0) ->  | D13: =VLOOKUP(A13,search!A12:D511,2,0) ->  | F13: =VLOOKUP(A13,search!A12:D511,4,0) -> 
C14: =VLOOKUP(A14,search!A13:D512,3,0) ->  | D14: =VLOOKUP(A14,search!A13:D512,2,0) ->  | F14: =VLOOKUP(A14,search!A13:D512,4,0) -> 
C15: =VLOOKUP(A15,search!A14:D513,3,0) ->  | D15: =VLOOKUP(A15,search!A14:D513,2,0) ->  | F15: =VLOOKUP(A15,search!A14:D513,4,0) -> 
C16: =VLOOKUP(A16,search!A15:D514,3,0) ->  | D16: =VLOOKUP(A16,search!A15:D514,2,0) ->  | F16: =VLOOKUP(A16,search!A15:D514,4,0) -> 
C17: =VLOOKUP(A17,search!A16:D515,3,0) ->  | D17: =VLOOKUP(A17,search!A16:D515,2,0) ->  | F17: =VLOOKUP(A17,search!A16:D515,4,0) -> 
C18: =VLOOKUP(A18,search!A17:D516,3,0) ->  | D18: =VLOOKUP(A18,search!A17:D516,2,0) ->  | F18: =VLOOKUP(A18,search!A17:D516,4,0) -> 
C19: =VLOOKUP(A19,search!A18:D517,3,0) ->  | D19: =VLOOKUP(A19,search!A18:D517,2,0) ->  | F19: =VLOOKUP(A19,search!A18:D517,4,0) -> 
C20: =VLOOKUP(A20,search!A19:D518,3,0) ->  | D20: =VLOOKUP(A20,search!A19:D518,2,0) ->  | F20: =VLOOKUP(A20,search!A19:D518,4,0) -> 
C21: =VLOOKUP(A21,search!A20:D519,3,0) ->  | D21: =VLOOKUP(A21,search!A20:D519,2,0) ->  | F21: =VLOOKUP(A21,search!A20:D519,4,0) -> 
C22: =VLOOKUP(A22,search!A21:D520,3,0) ->  | D22: =VLOOKUP(A22,search!A21:D520,2,0) ->  | F22: =VLOOKUP(A22,search!A21:D520,4,0) -> 
C23: =VLOOKUP(A23,search!A22:D521,3,0) ->  | D23: =VLOOKUP(A23,search!A22:D521,2,0) ->  | F23: =VLOOKUP(A23,search!A22:D521,4,0) -> 
C24: =VLOOKUP(A24,search!A23:D522,3,0) ->  | D24: =VLOOKUP(A24,search!A23:D522,2,0) ->  | F24: =VLOOKUP(A24,search!A23:D522,4,0) -> 
C25: =VLOOKUP(A25,search!A24:D523,3,0) ->  | D25: =VLOOKUP(A25,search!A24:D523,2,0) ->  | F25: =VLOOKUP(A25,search!A24:D523,4,0) -> 
C26: =VLOOKUP(A26,search!A25:D524,3,0) ->  | D26: =VLOOKUP(A26,search!A25:D524,2,0) ->  | F26: =VLOOKUP(A26,search!A25:D524,4,0) -> 
C27: =VLOOKUP(A27,search!A26:D525,3,0) ->  | D27: =VLOOKUP(A27,search!A26:D525,2,0) ->  | F27: =VLOOKUP(A27,search!A26:D525,4,0) -> 
C28: =VLOOKUP(A28,search!A27:D526,3,0) ->  | D28: =VLOOKUP(A28,search!A27:D526,2,0) ->  | F28: =VLOOKUP(A28,search!A27:D526,4,0) -> 
C29: =VLOOKUP(A29,search!A28:D527,3,0) ->  | D29: =VLOOKUP(A29,search!A28:D527,2,0) ->  | F29: =VLOOKUP(A29,search!A28:D527,4,0) -> 
C30: =VLOOKUP(A30,search!A29:D528,3,0) ->  | D30: =VLOOKUP(A30,search!A29:D528,2,0) ->  | F30: =VLOOKUP(A30,search!A29:D528,4,0) -> 
C31: =VLOOKUP(A31,search!A30:D529,3,0) ->  | D31: =VLOOKUP(A31,search!A30:D529,2,0) ->  | F31: =VLOOKUP(A31,search!A30:D529,4,0) -> 
C32: =VLOOKUP(A32,search!A31:D530,3,0) ->  | D32: =VLOOKUP(A32,search!A31:D530,2,0) ->  | F32: =VLOOKUP(A32,search!A31:D530,4,0) -> 
C33: =VLOOKUP(A33,search!A32:D531,3,0) ->  | D33: =VLOOKUP(A33,search!A32:D531,2,0) ->  | F33: =VLOOKUP(A33,search!A32:D531,4,0) -> 
C34: =VLOOKUP(A34,search!A33:D532,3,0) ->  | D34: =VLOOKUP(A34,search!A33:D532,2,0) ->  | F34: =VLOOKUP(A34,search!A33:D532,4,0) -> 
C35: =VLOOKUP(A35,search!A34:D533,3,0) ->  | D35: =VLOOKUP(A35,search!A34:D533,2,0) ->  | F35: =VLOOKUP(A35,search!A34:D533,4,0) -> 
C36: =VLOOKUP(A36,search!A35:D534,3,0) ->  | D36: =VLOOKUP(A36,search!A35:D534,2,0) ->  | F36: =VLOOKUP(A36,search!A35:D534,4,0) -> 
C37: =VLOOKUP(A37,search!A36:D535,3,0) ->  | D37: =VLOOKUP(A37,search!A36:D535,2,0) ->  | F37: =VLOOKUP(A37,search!A36:D535,4,0) -> 
C38: =VLOOKUP(A38,search!A37:D536,3,0) ->  | D38: =VLOOKUP(A38,search!A37:D536,2,0) ->  | F38: =VLOOKUP(A38,search!A37:D536,4,0) -> 
C39: =VLOOKUP(A39,search!A38:D537,3,0) ->  | D39: =VLOOKUP(A39,search!A38:D537,2,0) ->  | F39: =VLOOKUP(A39,search!A38:D537,4,0) -> 
C40: =VLOOKUP(A40,search!A39:D538,3,0) ->  | D40: =VLOOKUP(A40,search!A39:D538,2,0) ->  | F40: =VLOOKUP(A40,search!A39:D538,4,0) -> 
C41: =VLOOKUP(A41,search!A40:D539,3,0) ->  | D41: =VLOOKUP(A41,search!A40:D539,2,0) ->  | F41: =VLOOKUP(A41,search!A40:D539,4,0) -> 
C42: =VLOOKUP(A42,search!A41:D540,3,0) ->  | D42: =VLOOKUP(A42,search!A41:D540,2,0) ->  | F42: =VLOOKUP(A42,search!A41:D540,4,0) -> 
C43: =VLOOKUP(A43,search!A42:D541,3,0) ->  | D43: =VLOOKUP(A43,search!A42:D541,2,0) ->  | F43: =VLOOKUP(A43,search!A42:D541,4,0) -> 
C44: =VLOOKUP(A44,search!A43:D542,3,0) ->  | D44: =VLOOKUP(A44,search!A43:D542,2,0) ->  | F44: =VLOOKUP(A44,search!A43:D542,4,0) -> 
C45: =VLOOKUP(A45,search!A44:D543,3,0) ->  | D45: =VLOOKUP(A45,search!A44:D543,2,0) ->  | F45: =VLOOKUP(A45,search!A44:D543,4,0) -> 
C46: =VLOOKUP(A46,search!A45:D544,3,0) ->  | D46: =VLOOKUP(A46,search!A45:D544,2,0) ->  | F46: =VLOOKUP(A46,search!A45:D544,4,0) -> 
C47: =VLOOKUP(A47,search!A46:D545,3,0) ->  | D47: =VLOOKUP(A47,search!A46:D545,2,0) ->  | F47: =VLOOKUP(A47,search!A46:D545,4,0) -> 
C48: =VLOOKUP(A48,search!A47:D546,3,0) ->  | D48: =VLOOKUP(A48,search!A47:D546,2,0) ->  | F48: =VLOOKUP(A48,search!A47:D546,4,0) -> 
C49: =VLOOKUP(A49,search!A48:D547,3,0) ->  | D49: =VLOOKUP(A49,search!A48:D547,2,0) ->  | F49: =VLOOKUP(A49,search!A48:D547,4,0) -> 
C50: =VLOOKUP(A50,search!A49:D548,3,0) ->  | D50: =VLOOKUP(A50,search!A49:D548,2,0) ->  | F50: =VLOOKUP(A50,search!A49:D548,4,0) -> 
B51: 0 | E51: 0
A52: BASE NAP B2
A53: Bianko Pio
A54: Burlanol
A55: COLOR Х Top coft белый
A56: Candor sec
A57: DC 4354/2
A58: DERGO PEL/A
A59: DL 100
A60: FERROL
A61: FINISH 10
A62: FINISH LUX SP
A63: FIXAMIN PUK
A64: Finish
A65: Frankosol
A66: HF AMMORB,ROSA/20кг, Кондиционер-ополаскиватель
A67: Hydret-1 пятновыводное средство
A68: Hydret-2
A69: Hydret-3
A70: INGRALUX наппирующий препарат с жирующим действием
A71: LIVAL GL - черного цвета №22 краситель для гладкой кожи
A72: LIVAL GLF
A73: LIVAL LICKER KONZ
A74: LIVAL LO
A75: LIVAL VLF
A76: LIVAL VLF NEW
A77: Liguisan Жидкий щелочной концентрат для улучшения результатов стирки
A78: Lival Color GL
A79: Lival LM
A80: NAPPALAN 87 AG
A81: Neutrol A
A82: Neutrol L Нейтрализатор
A83: Nostat ASN
A84: Novaclin Fresh KE
A85: Novoclin Fresh AN усилитель
A86: Nubuk finish 86
A87: OLISSO Power Жидкое моющее ср-во для текстильных изделий
A88: Odosorb Spray
A89: Oxyplex
A90: PERSTABILIZATOR
A91: Penta aktiv
A92: Pentasol Ultra Активатор для удаления сильных загрязнений
A93: Piuma Clean
A94: Polysol light
A95: Preperc пятновыводное средство
A96: RepairX Glue 20мл клей для кожи
A97: SUPER NAPPANTE
A98: Tenapre Exquisit
A99: Teppich-clean
A100: Toglisudore пятновыводка
A101: Top H
A102: V 1
A103: V 2
A104: V 3 пятновыводное средство
A105: Viva OLEO
A106: Viva Starch
A107: Viva Zum
A108: WetX Z Licker
A109: ZEFIR SEC
A110: Zeitz-Komplet Set 7*0,25мл набор пятновыводных средств
A111: Айяче отбеливатель для стирки
A112: Активированный уголь BLC LO12x40 фракц, 1-3 мм
A113: Ариель
A114: Ас Мульти
A115: Белизна
A116: Био-био Средство для предварительной зачистки текстиля перед стиркой, аквачисткой
A117: Валик ролик липкий сменный Plik
A118: Валик ролик липкий с ручкой
A119: Ваниш
A120: Вернис брил
A121: Вернис глос
A122: Вернис натурел матов
A123: Вешалка 2,3 мм с белым напылением 500шт.
A124: Деприт 1
A125: Деприт 2
A126: Деприт 3
A127: Детерженте пьюмони LA 31010 Средство для стирки пуховых изделий в воде
A128: Директ старк
A129: Дистил
A130: Клин Ап
A131: Клип Конц Асепт
A132: Клип Мульти
A133: Колор Дайм Beige
A134: Колор Дайм light brown
A135: Колор Дайм бордовый Краситель для замши
A136: Колор Дайм бургунди
A137: Колор Дайм желтый золото
A138: Колор Дайм зеленый
A139: Колор Дайм коричневый светлый Краситель для замши
A140: Колор Дайм коричневый темный Краситель для замши
A141: Колор Дайм красный
A142: Колор Дайм оранжевый
A143: Колор Дайм охра Краситель для замши
A144: Колор Дайм серый Краситель для замши
A145: Колор Дайм синий Краситель для замши
A146: Колор Дайм черный Краситель для замши
A147: Колор Хромо Софт бургунди
A148: Колор Хромо Софт жёлтый лимон
A149: Колор Хромо Софт желто-золото
A150: Колор Хромо Софт зелёный
A151: Колор Хромо Софт коричневый
A152: Колор Хромо Софт красная вишня Краситель для гладкой кожи
A153: Колор Хромо Софт оранж
A154: Колор Хромо Софт охра Краситель для гладкой кожи
A155: Колор Хромо Софт пурпурный
A156: Колор Хромо Софт светло-красный
A157: Колор Хромо Софт синий
A158: Колор Хромо Софт черный Краситель для гладкой кожи
A159: Колор Хромо софт белый
A160: Колор дайм
A161: Колор хромо софт бордово-малиновый
A162: Колор хромо софт красный
A163: Колордайм Краска для замши бежевый
A164: Колофикс предотвращает и удаляет закрасы в водной среде
A165: Краситель для окраски меха в ручную
A166: Краска для гладкой кожи Хромософт белый 1кг
A167: Ланадол Авант
A168: Ланадол Актив
A169: Ланадол Апрет
A170: Ланадол Ликер
A171: Ленор
A172: Маркировочная лента
A173: Нубук финиш 86
A174: Нью колор велюр
A175: Олеодерм
A176: Перхлорэтилен
A177: Пренет А
A178: Пренет В
A179: Пренет Пур
A180: Пренет С
A181: Пьюма специальный препарат кондиционер для аквачистки пуховых изделий
A182: Пьюмино 18010 LA Смягчитель для тканей
A183: Рикончанте амано базе экстра конц,жирующее
A184: Сграсанте пер аква TS 27010 Препарат для удаления жировых пятен на текстиле, коже в воде
A185: Скаттанте антипьега Ополаскиватель , Облегчает глажение
A186: Скрепки для степлера Bostitch P3
A187: Степлер Bostitch P3
A188: Титаник LA 20010 Зачистное средство для удаления в вод, среде загрязнений любого типа
A189: Унистил
A190: Фисаторе нью колор велюр
A191: Хромософт
A192: Шуеде плюс
A193: Эссенция аква Концентрированная освежающая эссенция для стирки
A194: Делавон Сол
A195: Био Зим
A196: Биоксиджен
A197: Плума Винд
A198: ПЛума Софт АП
A199: Импертекс ЗЭД
A200: Декап
... 350 more rows
